[Event "Titled Tuesday Blitz May 4 2021"]
[White "Rodrigue-Lemieux, Shawn"]
[Black "Reprintsev, Alexander"]
[WhiteFideId "2620049"]
[BlackFideId "14100541"]
[WhiteElo "1763"]
[BlackElo "2194"]
[Result "1-0"]
[Round "02"]
[TimeControl "180+1"]
[Date "2021.05.04"]
[WhiteClock "0:00:09"]
[BlackClock "0:00:07"]

1. c4 {[%clk 0:03:00]}  e5 {[%clk 0:02:58]} 2. g3 {[%clk 0:03:00]}  Bc5 {[%clk 0:02:56]} 3. Bg2 {[%clk 0:03:00]}  c6 {[%clk 0:02:56]} 4. Nc3 {[%clk 0:02:59]}  Nf6 {[%clk 0:02:55]} 5. Nf3 {[%clk 0:02:46]}  Qe7 {[%clk 0:02:54]} 6. d4 {[%clk 0:02:42]}  exd4 {[%clk 0:02:52]} 7. Nxd4 {[%clk 0:02:43]}  d5 {[%clk 0:02:32]} 8. cxd5 {[%clk 0:02:42]}  cxd5 {[%clk 0:02:32]} 9. O-O {[%clk 0:02:40]}  Nc6 {[%clk 0:02:31]} 10. Nb3 {[%clk 0:02:39]}  Be6 {[%clk 0:02:26]} 11. Nxc5 {[%clk 0:02:37]}  Qxc5 {[%clk 0:02:25]} 12. Bg5 {[%clk 0:02:36]}  Ne4 {[%clk 0:02:06]} 13. Bxe4 {[%clk 0:02:33]}  dxe4 {[%clk 0:02:06]} 14. Nxe4 {[%clk 0:02:34]}  Qb4 {[%clk 0:01:21]} 15. Nd6+ {[%clk 0:02:29]}  Kf8 {[%clk 0:01:21]} 16. a3 {[%clk 0:01:55]}  Qg4 {[%clk 0:01:15]} 17. Bf4 {[%clk 0:01:50]}  Rd8 {[%clk 0:01:09]} 18. e4 {[%clk 0:01:04]}  g5 {[%clk 0:01:03]} 19. Be3 {[%clk 0:01:01]}  h5 {[%clk 0:00:49]} 20. Qxg4 {[%clk 0:00:59]}  hxg4 {[%clk 0:00:46]} 21. Nxb7 {[%clk 0:00:58]}  Rb8 {[%clk 0:00:46]} 22. Nc5 {[%clk 0:00:56]}  Rxb2 {[%clk 0:00:45]} 23. Kg2 {[%clk 0:00:31]}  Rh5 {[%clk 0:00:15]} 24. Rfb1 {[%clk 0:00:18]}  Rc2 {[%clk 0:00:12]} 25. Nxe6+ {[%clk 0:00:13]}  fxe6 {[%clk 0:00:12]} 26. Rc1 {[%clk 0:00:14]}  Rxc1 {[%clk 0:00:11]} 27. Rxc1 {[%clk 0:00:15]}  Ne5 {[%clk 0:00:11]} 28. Bxa7 {[%clk 0:00:14]}  Nf3 {[%clk 0:00:12]} 29. Rh1 {[%clk 0:00:12]}  Rh7 {[%clk 0:00:12]} 30. Bc5+ {[%clk 0:00:11]}  Kf7 {[%clk 0:00:10]} 31. h3 {[%clk 0:00:11]}  Ne5 {[%clk 0:00:07]} 32. hxg4 {[%clk 0:00:11]}  Rg7 {[%clk 0:00:07]} 33. Bd4 {[%clk 0:00:10]}  Kf6 {[%clk 0:00:07]} 34. Rh6+ {[%clk 0:00:09]} 1-0


[Site "https://www.chess.com"]

[Event "Titled Tuesday Blitz May 4 2021"]
[White "Rozhkov, Viacheslav"]
[Black "Weetik, Vjacheslav"]
[WhiteFideId "4181484"]
[BlackFideId "4153472"]
[WhiteElo "2324"]
[BlackElo "2469"]
[Result "0-1"]
[Round "02"]
[TimeControl "180+1"]
[Date "2021.05.04"]
[WhiteClock "0:00:02"]
[BlackClock "0:00:01"]

1. e4 {[%clk 0:03:00]}  c6 {[%clk 0:02:55]} 2. d4 {[%clk 0:03:00]}  d5 {[%clk 0:02:55]} 3. e5 {[%clk 0:03:00]}  Bf5 {[%clk 0:02:55]} 4. Nd2 {[%clk 0:03:00]}  e6 {[%clk 0:02:55]} 5. Nb3 {[%clk 0:03:00]}  Nd7 {[%clk 0:02:55]} 6. Be3 {[%clk 0:03:00]}  Bg6 {[%clk 0:02:53]} 7. c3 {[%clk 0:02:58]}  Nh6 {[%clk 0:02:50]} 8. f4 {[%clk 0:02:58]}  Nf5 {[%clk 0:02:47]} 9. Bf2 {[%clk 0:02:58]}  h5 {[%clk 0:02:47]} 10. Nf3 {[%clk 0:02:58]}  Qb6 {[%clk 0:02:35]} 11. Bd3 {[%clk 0:02:57]}  Be7 {[%clk 0:02:12]} 12. O-O {[%clk 0:02:56]}  a5 {[%clk 0:02:09]} 13. a4 {[%clk 0:02:45]}  h4 {[%clk 0:02:09]} 14. h3 {[%clk 0:02:35]}  Bh5 {[%clk 0:02:01]} 15. Bxf5 {[%clk 0:01:32]}  exf5 {[%clk 0:02:01]} 16. e6 {[%clk 0:01:31]}  fxe6 {[%clk 0:01:47]} 17. Re1 {[%clk 0:01:31]}  Rh6 {[%clk 0:01:34]} 18. Nc5 {[%clk 0:01:06]}  Nxc5 {[%clk 0:01:16]} 19. dxc5 {[%clk 0:01:06]}  Bxc5 {[%clk 0:01:16]} 20. Bxc5 {[%clk 0:01:06]}  Qxc5+ {[%clk 0:01:17]} 21. Kh1 {[%clk 0:01:05]}  O-O-O {[%clk 0:00:52]} 22. Qd3 {[%clk 0:01:03]}  Bxf3 {[%clk 0:00:47]} 23. Qxf3 {[%clk 0:01:04]}  Rg6 {[%clk 0:00:24]} 24. Qh5 {[%clk 0:00:58]}  Rf6 {[%clk 0:00:21]} 25. Qxh4 {[%clk 0:00:58]}  Qc4 {[%clk 0:00:20]} 26. Rad1 {[%clk 0:00:48]}  Qxa4 {[%clk 0:00:19]} 27. Qg5 {[%clk 0:00:34]}  Rd7 {[%clk 0:00:18]} 28. Rd2 {[%clk 0:00:26]}  Kc7 {[%clk 0:00:17]} 29. Rde2 {[%clk 0:00:25]}  Re7 {[%clk 0:00:16]} 30. Qg3 {[%clk 0:00:19]}  Qb5 {[%clk 0:00:15]} 31. Qe3 {[%clk 0:00:19]}  b6 {[%clk 0:00:14]} 32. Qe5+ {[%clk 0:00:18]}  Kb7 {[%clk 0:00:15]} 33. Qd4 {[%clk 0:00:18]}  Qc5 {[%clk 0:00:14]} 34. Qd1 {[%clk 0:00:17]}  Qd6 {[%clk 0:00:14]} 35. Qa4 {[%clk 0:00:16]}  Rg6 {[%clk 0:00:11]} 36. Re5 {[%clk 0:00:13]}  Rh6 {[%clk 0:00:10]} 37. b4 {[%clk 0:00:13]}  Rh8 {[%clk 0:00:08]} 38. bxa5 {[%clk 0:00:13]}  Ra8 {[%clk 0:00:09]} 39. Rb1 {[%clk 0:00:11]}  b5 {[%clk 0:00:09]} 40. Qa2 {[%clk 0:00:08]}  Ra6 {[%clk 0:00:09]} 41. Qe2 {[%clk 0:00:07]}  Rxa5 {[%clk 0:00:08]} 42. Re1 {[%clk 0:00:07]}  Ra3 {[%clk 0:00:07]} 43. Qd3 {[%clk 0:00:05]}  Qc5 {[%clk 0:00:06]} 44. Rxe6 {[%clk 0:00:05]}  Rxe6 {[%clk 0:00:06]} 45. Rxe6 {[%clk 0:00:05]}  Ra1+ {[%clk 0:00:06]} 46. Kh2 {[%clk 0:00:06]}  Kb6 {[%clk 0:00:05]} 47. Re3 {[%clk 0:00:05]}  Rc1 {[%clk 0:00:03]} 48. Qd2 {[%clk 0:00:03]}  Rb1 {[%clk 0:00:02]} 49. h4 {[%clk 0:00:03]}  Qc4 {[%clk 0:00:01]} 50. Rd3 {[%clk 0:00:02]}  Rb3 {[%clk 0:00:01]} 0-1


[Site "https://www.chess.com"]

[Event "Titled Tuesday Blitz May 4 2021"]
[White "Rustemov, Alexander"]
[Black "Pein, Jonathan"]
[WhiteFideId "4119002"]
[BlackFideId "417092"]
[WhiteElo "2615"]
[BlackElo "2167"]
[Result "0-1"]
[Round "02"]
[TimeControl "180+1"]
[Date "2021.05.04"]
[WhiteClock "0:01:29"]
[BlackClock "0:00:11"]

1. d4 {[%clk 0:03:00]}  d5 {[%clk 0:02:59]} 2. c4 {[%clk 0:03:00]}  Nc6 {[%clk 0:03:00]} 3. Nf3 {[%clk 0:02:59]}  Bg4 {[%clk 0:03:00]} 4. cxd5 {[%clk 0:02:58]}  Bxf3 {[%clk 0:03:00]} 5. gxf3 {[%clk 0:02:59]}  Qxd5 {[%clk 0:03:00]} 6. e3 {[%clk 0:03:00]}  e5 {[%clk 0:03:01]} 7. Nc3 {[%clk 0:03:01]}  Bb4 {[%clk 0:03:01]} 8. Bd2 {[%clk 0:03:02]}  Bxc3 {[%clk 0:03:01]} 9. bxc3 {[%clk 0:03:02]}  Nge7 {[%clk 0:02:53]} 10. Qb3 {[%clk 0:03:01]}  Qxf3 {[%clk 0:02:47]} 11. Rg1 {[%clk 0:02:57]}  O-O {[%clk 0:02:38]} 12. Be2 {[%clk 0:02:53]}  Qf6 {[%clk 0:02:29]} 13. Qxb7 {[%clk 0:02:52]}  Rab8 {[%clk 0:02:09]} 14. Qa6 {[%clk 0:02:50]}  Rb2 {[%clk 0:02:02]} 15. Rd1 {[%clk 0:02:47]}  e4 {[%clk 0:01:53]} 16. Qc4 {[%clk 0:02:32]}  Rfb8 {[%clk 0:01:47]} 17. Rg4 {[%clk 0:02:26]}  Qd6 {[%clk 0:01:06]} 18. Rf4 {[%clk 0:02:17]}  Nd8 {[%clk 0:00:59]} 19. Rxe4 {[%clk 0:02:16]}  Ne6 {[%clk 0:00:53]} 20. f4 {[%clk 0:02:11]}  Nf5 {[%clk 0:00:40]} 21. Re5 {[%clk 0:02:09]}  g6 {[%clk 0:00:39]} 22. Kf2 {[%clk 0:02:08]}  Qd8 {[%clk 0:00:36]} 23. Qd5 {[%clk 0:01:55]}  Qh4+ {[%clk 0:00:35]} 24. Kg1 {[%clk 0:01:54]}  Rxd2 {[%clk 0:00:29]} 25. Rxd2 {[%clk 0:01:53]}  Rb1+ {[%clk 0:00:29]} 26. Bf1 {[%clk 0:01:51]}  Qe1 {[%clk 0:00:21]} 27. Qg2 {[%clk 0:01:46]}  Nxe3 {[%clk 0:00:19]} 28. Rxe3 {[%clk 0:01:42]}  Qxe3+ {[%clk 0:00:20]} 29. Qf2 {[%clk 0:01:43]}  Qxf4 {[%clk 0:00:19]} 30. Qxf4 {[%clk 0:01:42]}  Nxf4 {[%clk 0:00:20]} 31. Kf2 {[%clk 0:01:43]}  Nd5 {[%clk 0:00:19]} 32. c4 {[%clk 0:01:42]}  Nc3 {[%clk 0:00:19]} 33. d5 {[%clk 0:01:41]}  Ne4+ {[%clk 0:00:19]} 34. Ke3 {[%clk 0:01:38]}  Nxd2 {[%clk 0:00:20]} 35. Bd3 {[%clk 0:01:38]}  Nxc4+ {[%clk 0:00:19]} 36. Kd4 {[%clk 0:01:35]}  Rh1 {[%clk 0:00:17]} 37. Bxc4 {[%clk 0:01:33]}  Rxh2 {[%clk 0:00:16]} 38. Kc5 {[%clk 0:01:33]}  Rc2 {[%clk 0:00:13]} 39. Kb5 {[%clk 0:01:29]}  Kf8 {[%clk 0:00:14]} 40. Bb3 {[%clk 0:01:28]}  Rc3 {[%clk 0:00:13]} 41. Ka6 {[%clk 0:01:29]}  Ke7 {[%clk 0:00:13]} 42. Kxa7 {[%clk 0:01:30]}  Kd6 {[%clk 0:00:14]} 43. Kb7 {[%clk 0:01:30]}  h5 {[%clk 0:00:14]} 44. Ba4 {[%clk 0:01:29]}  Ra3 {[%clk 0:00:13]} 45. Be8 {[%clk 0:01:29]}  Rxa2 {[%clk 0:00:11]} 46. Bxf7 {[%clk 0:01:30]}  Rb2+ {[%clk 0:00:11]} 47. Kc8 {[%clk 0:01:30]}  Rg2 {[%clk 0:00:12]} 48. Kd8 {[%clk 0:01:29]}  h4 {[%clk 0:00:12]} 49. Be6 {[%clk 0:01:28]}  Rg3 {[%clk 0:00:11]} 50. Ke8 {[%clk 0:01:29]}  h3 {[%clk 0:00:11]} 0-1


[Site "https://www.chess.com"]

[Event "Titled Tuesday Blitz May 4 2021"]
[White "Rytenko, Vsevolod"]
[Black "Ivanisevic, Ivan"]
[WhiteFideId "14133040"]
[BlackFideId "912417"]
[WhiteElo "2228"]
[BlackElo "2525"]
[Result "0-1"]
[Round "02"]
[TimeControl "180+1"]
[Date "2021.05.04"]
[WhiteClock "0:00:53"]
[BlackClock "0:00:58"]

1. d4 {[%clk 0:03:00]}  Nf6 {[%clk 0:02:57]} 2. c4 {[%clk 0:03:01]}  c5 {[%clk 0:02:57]} 3. Nf3 {[%clk 0:03:00]}  cxd4 {[%clk 0:02:56]} 4. Nxd4 {[%clk 0:03:01]}  Nc6 {[%clk 0:02:56]} 5. Nc3 {[%clk 0:03:00]}  e6 {[%clk 0:02:56]} 6. g3 {[%clk 0:02:59]}  Bc5 {[%clk 0:02:56]} 7. e3 {[%clk 0:02:59]}  O-O {[%clk 0:02:47]} 8. Bg2 {[%clk 0:02:58]}  d5 {[%clk 0:02:34]} 9. cxd5 {[%clk 0:02:57]}  exd5 {[%clk 0:02:34]} 10. O-O {[%clk 0:02:53]}  Bg4 {[%clk 0:02:33]} 11. Qa4 {[%clk 0:02:44]}  Qd7 {[%clk 0:02:18]} 12. Nxc6 {[%clk 0:02:19]}  bxc6 {[%clk 0:02:19]} 13. b3 {[%clk 0:02:08]}  Rfe8 {[%clk 0:02:06]} 14. Bb2 {[%clk 0:02:06]}  Bb6 {[%clk 0:01:50]} 15. Rac1 {[%clk 0:01:35]}  h5 {[%clk 0:01:48]} 16. Qf4 {[%clk 0:01:23]}  Bc7 {[%clk 0:01:43]} 17. Qg5 {[%clk 0:01:22]}  Re5 {[%clk 0:01:42]} 18. Qh4 {[%clk 0:01:22]}  g5 {[%clk 0:01:40]} 19. f4 {[%clk 0:01:16]}  gxh4 {[%clk 0:01:38]} 20. fxe5 {[%clk 0:01:17]}  Bxe5 {[%clk 0:01:39]} 21. Na4 {[%clk 0:01:14]}  Bxb2 {[%clk 0:01:36]} 22. Nxb2 {[%clk 0:01:15]}  Qe7 {[%clk 0:01:36]} 23. Rce1 {[%clk 0:01:13]}  h3 {[%clk 0:01:27]} 24. Bh1 {[%clk 0:01:13]}  Ne4 {[%clk 0:01:24]} 25. Nd3 {[%clk 0:01:12]}  Re8 {[%clk 0:01:18]} 26. Nf4 {[%clk 0:01:12]}  Qe5 {[%clk 0:01:03]} 27. Bf3 {[%clk 0:01:10]}  Nd2 {[%clk 0:01:01]} 28. Bxg4 {[%clk 0:01:07]}  hxg4 {[%clk 0:01:02]} 29. Nd3 {[%clk 0:00:58]}  Qe4 {[%clk 0:01:01]} 30. Nf4 {[%clk 0:00:53]}  Nxf1 {[%clk 0:00:58]} 31. Rxf1 {[%clk 0:00:53]}  Qxe3+ {[%clk 0:00:58]} 0-1


[Site "https://www.chess.com"]

[Event "Titled Tuesday Blitz May 4 2021"]
[White "Rzayev, Bahruz"]
[Black "Alboredo, Julia"]
[WhiteFideId "13403036"]
[BlackFideId "2124807"]
[WhiteElo "2331"]
[BlackElo "2041"]
[Result "1-0"]
[Round "02"]
[TimeControl "180+1"]
[Date "2021.05.04"]
[WhiteClock "0:00:21"]
[BlackClock "0:00:11"]

1. e4 {[%clk 0:02:50]}  c5 {[%clk 0:02:58]} 2. Nf3 {[%clk 0:02:50]}  d6 {[%clk 0:02:58]} 3. Nc3 {[%clk 0:02:50]}  Nc6 {[%clk 0:02:56]} 4. g3 {[%clk 0:02:49]}  e6 {[%clk 0:02:54]} 5. Bg2 {[%clk 0:02:49]}  Nge7 {[%clk 0:02:54]} 6. O-O {[%clk 0:02:48]}  g6 {[%clk 0:02:54]} 7. d4 {[%clk 0:02:47]}  cxd4 {[%clk 0:02:52]} 8. Nxd4 {[%clk 0:02:48]}  Bg7 {[%clk 0:02:51]} 9. Ndb5 {[%clk 0:02:48]}  O-O {[%clk 0:02:46]} 10. Qxd6 {[%clk 0:02:38]}  a6 {[%clk 0:02:42]} 11. Qxd8 {[%clk 0:02:36]}  Rxd8 {[%clk 0:02:43]} 12. Na3 {[%clk 0:02:33]}  b5 {[%clk 0:02:41]} 13. Ne2 {[%clk 0:02:24]}  Bb7 {[%clk 0:02:27]} 14. c3 {[%clk 0:02:23]}  b4 {[%clk 0:02:23]} 15. cxb4 {[%clk 0:02:21]}  Nxb4 {[%clk 0:02:24]} 16. Nc4 {[%clk 0:02:16]}  a5 {[%clk 0:02:05]} 17. Bg5 {[%clk 0:02:14]}  f6 {[%clk 0:01:59]} 18. Bf4 {[%clk 0:02:03]}  Ba6 {[%clk 0:01:48]} 19. b3 {[%clk 0:01:52]}  Bxc4 {[%clk 0:01:47]} 20. bxc4 {[%clk 0:01:51]}  Rac8 {[%clk 0:01:48]} 21. a3 {[%clk 0:01:46]}  Nd3 {[%clk 0:01:43]} 22. Rfd1 {[%clk 0:01:20]}  Nxf4 {[%clk 0:01:03]} 23. Nxf4 {[%clk 0:01:18]}  Kf7 {[%clk 0:01:04]} 24. Bf1 {[%clk 0:01:02]}  f5 {[%clk 0:00:57]} 25. Rxd8 {[%clk 0:01:00]}  Rxd8 {[%clk 0:00:56]} 26. Rb1 {[%clk 0:01:00]}  Rd2 {[%clk 0:00:47]} 27. exf5 {[%clk 0:00:51]}  exf5 {[%clk 0:00:41]} 28. Rb7 {[%clk 0:00:32]}  Ke8 {[%clk 0:00:38]} 29. Ne6 {[%clk 0:00:31]}  Be5 {[%clk 0:00:31]} 30. c5 {[%clk 0:00:29]}  Rc2 {[%clk 0:00:31]} 31. f4 {[%clk 0:00:25]}  Bb2 {[%clk 0:00:17]} 32. a4 {[%clk 0:00:21]}  Ba3 {[%clk 0:00:16]} 33. Bb5+ {[%clk 0:00:20]}  Kf7 {[%clk 0:00:16]} 34. Ng5+ {[%clk 0:00:20]}  Kf8 {[%clk 0:00:15]} 35. c6 {[%clk 0:00:20]}  Rc1+ {[%clk 0:00:14]} 36. Kf2 {[%clk 0:00:19]}  Nxc6 {[%clk 0:00:14]} 37. Nxh7+ {[%clk 0:00:18]}  Ke8 {[%clk 0:00:14]} 38. Rc7 {[%clk 0:00:18]}  Kd8 {[%clk 0:00:14]} 39. Rxc6 {[%clk 0:00:18]}  Rxc6 {[%clk 0:00:15]} 40. Bxc6 {[%clk 0:00:19]}  Ke7 {[%clk 0:00:15]} 41. Ng5 {[%clk 0:00:19]}  Kf6 {[%clk 0:00:15]} 42. Ke2 {[%clk 0:00:19]}  Bb4 {[%clk 0:00:16]} 43. Nf3 {[%clk 0:00:19]}  Bc5 {[%clk 0:00:16]} 44. Kd3 {[%clk 0:00:20]}  g5 {[%clk 0:00:12]} 45. Kc4 {[%clk 0:00:20]}  g4 {[%clk 0:00:11]} 46. Kxc5 {[%clk 0:00:20]}  gxf3 {[%clk 0:00:11]} 47. Bxf3 {[%clk 0:00:21]} 1-0


[Site "https://www.chess.com"]

[Event "Titled Tuesday Blitz May 4 2021"]
[White "Sahil, Tickoo"]
[Black "Demin, Vladimir"]
[WhiteFideId "5019710"]
[BlackFideId "4167457"]
[WhiteElo "2099"]
[BlackElo "2456"]
[Result "0-1"]
[Round "02"]
[TimeControl "180+1"]
[Date "2021.05.04"]
[WhiteClock "0:00:24"]
[BlackClock "0:00:32"]

1. d4 {[%clk 0:03:00]}  Nf6 {[%clk 0:02:59]} 2. c4 {[%clk 0:03:00]}  e5 {[%clk 0:02:59]} 3. dxe5 {[%clk 0:02:59]}  Ng4 {[%clk 0:02:58]} 4. Nf3 {[%clk 0:02:59]}  Bc5 {[%clk 0:02:58]} 5. e3 {[%clk 0:02:59]}  Nc6 {[%clk 0:02:58]} 6. Nc3 {[%clk 0:02:59]}  O-O {[%clk 0:02:58]} 7. a3 {[%clk 0:02:57]}  a5 {[%clk 0:02:56]} 8. Nd5 {[%clk 0:02:46]}  Ngxe5 {[%clk 0:02:54]} 9. Nxe5 {[%clk 0:02:45]}  Nxe5 {[%clk 0:02:55]} 10. f4 {[%clk 0:02:43]}  Ng6 {[%clk 0:02:50]} 11. Bd3 {[%clk 0:02:40]}  Re8 {[%clk 0:02:47]} 12. Qf3 {[%clk 0:02:30]}  c6 {[%clk 0:02:37]} 13. Nc3 {[%clk 0:02:29]}  Qh4+ {[%clk 0:02:29]} 14. Kf1 {[%clk 0:02:14]}  d6 {[%clk 0:02:28]} 15. Ne4 {[%clk 0:02:07]}  Bg4 {[%clk 0:02:13]} 16. Qf2 {[%clk 0:01:55]}  Qxf2+ {[%clk 0:02:02]} 17. Kxf2 {[%clk 0:01:44]}  Ba7 {[%clk 0:02:02]} 18. g3 {[%clk 0:01:33]}  d5 {[%clk 0:02:01]} 19. cxd5 {[%clk 0:01:33]}  cxd5 {[%clk 0:02:01]} 20. Ng5 {[%clk 0:01:30]}  d4 {[%clk 0:01:57]} 21. e4 {[%clk 0:01:29]}  Ne7 {[%clk 0:01:38]} 22. h3 {[%clk 0:01:25]}  Bd7 {[%clk 0:01:36]} 23. Bd2 {[%clk 0:01:22]}  Bc6 {[%clk 0:01:29]} 24. Rhe1 {[%clk 0:01:20]}  Nc8 {[%clk 0:01:29]} 25. e5 {[%clk 0:01:17]}  h6 {[%clk 0:01:29]} 26. Ne4 {[%clk 0:01:16]}  Ne7 {[%clk 0:01:26]} 27. Nd6 {[%clk 0:01:15]}  Red8 {[%clk 0:01:27]} 28. Rac1 {[%clk 0:01:12]}  Nd5 {[%clk 0:01:24]} 29. h4 {[%clk 0:01:03]}  a4 {[%clk 0:01:22]} 30. Ba5 {[%clk 0:01:02]}  Rd7 {[%clk 0:01:22]} 31. Bd2 {[%clk 0:01:01]}  Ne3 {[%clk 0:01:19]} 32. Nc4 {[%clk 0:00:53]}  Nxc4 {[%clk 0:01:10]} 33. Bxc4 {[%clk 0:00:51]}  d3+ {[%clk 0:01:10]} 34. Kf1 {[%clk 0:00:51]}  Bf3 {[%clk 0:01:05]} 35. e6 {[%clk 0:00:49]}  Bg4 {[%clk 0:00:59]} 36. Kg2 {[%clk 0:00:40]}  fxe6 {[%clk 0:00:51]} 37. Rxe6 {[%clk 0:00:37]}  Kh8 {[%clk 0:00:45]} 38. Re5 {[%clk 0:00:28]}  Bd4 {[%clk 0:00:38]} 39. Rb5 {[%clk 0:00:26]}  Re8 {[%clk 0:00:36]} 40. Bxd3 {[%clk 0:00:24]}  Bf6 {[%clk 0:00:32]} 0-1


[Site "https://www.chess.com"]

[Event "Titled Tuesday Blitz May 4 2021"]
[White "Salinas Herrera, Pablo"]
[Black "Garcia Fuentes, Sergio Miguel"]
[WhiteFideId "3407128"]
[BlackFideId "7300549"]
[WhiteElo "2541"]
[BlackElo "2167"]
[Result "1-0"]
[Round "02"]
[TimeControl "180+1"]
[Date "2021.05.04"]
[WhiteClock "0:01:07"]
[BlackClock "0:00:14"]

1. d4 {[%clk 0:03:00]}  d5 {[%clk 0:02:56]} 2. Bf4 {[%clk 0:03:00]}  c5 {[%clk 0:02:55]} 3. e3 {[%clk 0:03:00]}  Nc6 {[%clk 0:02:53]} 4. Nf3 {[%clk 0:02:58]}  Qb6 {[%clk 0:02:52]} 5. Nc3 {[%clk 0:02:53]}  cxd4 {[%clk 0:02:23]} 6. exd4 {[%clk 0:02:44]}  Be6 {[%clk 0:02:08]} 7. Na4 {[%clk 0:02:26]}  Qa5+ {[%clk 0:02:02]} 8. c3 {[%clk 0:02:26]}  Bf5 {[%clk 0:01:45]} 9. Qb3 {[%clk 0:02:25]}  Nd8 {[%clk 0:01:27]} 10. Nc5 {[%clk 0:01:37]}  e5 {[%clk 0:01:07]} 11. Bb5+ {[%clk 0:01:30]}  Nc6 {[%clk 0:00:55]} 12. Nxe5 {[%clk 0:01:21]}  Bxc5 {[%clk 0:00:37]} 13. Nxc6 {[%clk 0:01:14]}  Qb6 {[%clk 0:00:19]} 14. dxc5 {[%clk 0:01:10]}  Qxc5 {[%clk 0:00:15]} 15. Nd4+ {[%clk 0:01:08]}  Kf8 {[%clk 0:00:14]} 16. Nxf5 {[%clk 0:01:07]} 1-0


[Site "https://www.chess.com"]

[Event "Titled Tuesday Blitz May 4 2021"]
[White "Samadov, Read"]
[Black "Daulyte-Cornette, Deimante"]
[WhiteFideId "13417444"]
[BlackFideId "12802859"]
[WhiteElo "2084"]
[BlackElo "2285"]
[Result "1-0"]
[Round "02"]
[TimeControl "180+1"]
[Date "2021.05.04"]
[WhiteClock "0:00:33"]
[BlackClock "0:00:04"]

1. d4 {[%clk 0:03:00]}  d6 {[%clk 0:02:58]} 2. c4 {[%clk 0:02:58]}  e5 {[%clk 0:02:58]} 3. Nc3 {[%clk 0:02:57]}  exd4 {[%clk 0:02:53]} 4. Qxd4 {[%clk 0:02:58]}  Nc6 {[%clk 0:02:52]} 5. Qd2 {[%clk 0:02:58]}  Nf6 {[%clk 0:02:41]} 6. b3 {[%clk 0:02:54]}  a5 {[%clk 0:02:41]} 7. Bb2 {[%clk 0:02:45]}  a4 {[%clk 0:02:33]} 8. Rd1 {[%clk 0:02:13]}  axb3 {[%clk 0:02:24]} 9. axb3 {[%clk 0:02:13]}  Be7 {[%clk 0:02:06]} 10. Nf3 {[%clk 0:02:12]}  O-O {[%clk 0:02:06]} 11. g3 {[%clk 0:02:12]}  Bf5 {[%clk 0:01:57]} 12. Bg2 {[%clk 0:02:11]}  h6 {[%clk 0:01:55]} 13. O-O {[%clk 0:02:10]}  Re8 {[%clk 0:01:53]} 14. Ra1 {[%clk 0:02:07]}  Qd7 {[%clk 0:01:49]} 15. Nd4 {[%clk 0:02:00]}  Nxd4 {[%clk 0:01:35]} 16. Qxd4 {[%clk 0:02:00]}  c6 {[%clk 0:01:33]} 17. e4 {[%clk 0:01:56]}  Bh3 {[%clk 0:01:14]} 18. f3 {[%clk 0:01:49]}  Bxg2 {[%clk 0:01:12]} 19. Kxg2 {[%clk 0:01:50]}  Bf8 {[%clk 0:01:10]} 20. Rfd1 {[%clk 0:01:45]}  Qe6 {[%clk 0:01:03]} 21. Ne2 {[%clk 0:01:38]}  Rxa1 {[%clk 0:00:46]} 22. Rxa1 {[%clk 0:01:37]}  d5 {[%clk 0:00:44]} 23. Nf4 {[%clk 0:01:32]}  Qd7 {[%clk 0:00:36]} 24. cxd5 {[%clk 0:01:31]}  cxd5 {[%clk 0:00:35]} 25. e5 {[%clk 0:01:27]}  Nh7 {[%clk 0:00:27]} 26. Qxd5 {[%clk 0:01:27]}  Qf5 {[%clk 0:00:23]} 27. Qd3 {[%clk 0:01:21]}  Qc8 {[%clk 0:00:13]} 28. Rc1 {[%clk 0:01:18]}  Qa8 {[%clk 0:00:13]} 29. Rc2 {[%clk 0:01:03]}  Rd8 {[%clk 0:00:13]} 30. Qc4 {[%clk 0:00:57]}  Ng5 {[%clk 0:00:12]} 31. h4 {[%clk 0:00:56]}  b5 {[%clk 0:00:12]} 32. Qe2 {[%clk 0:00:50]}  Ne6 {[%clk 0:00:11]} 33. Nxe6 {[%clk 0:00:49]}  fxe6 {[%clk 0:00:11]} 34. Qxb5 {[%clk 0:00:48]}  Rb8 {[%clk 0:00:08]} 35. Qc4 {[%clk 0:00:47]}  Rb6 {[%clk 0:00:05]} 36. Bd4 {[%clk 0:00:46]}  Ra6 {[%clk 0:00:05]} 37. b4 {[%clk 0:00:44]}  Kf7 {[%clk 0:00:05]} 38. b5 {[%clk 0:00:42]}  Ra4 {[%clk 0:00:06]} 39. Qc7+ {[%clk 0:00:41]}  Kg8 {[%clk 0:00:06]} 40. Bf2 {[%clk 0:00:38]}  Ra3 {[%clk 0:00:06]} 41. Qc6 {[%clk 0:00:38]}  Qa4 {[%clk 0:00:05]} 42. b6 {[%clk 0:00:35]}  Qb3 {[%clk 0:00:04]} 43. b7 {[%clk 0:00:33]} 1-0


[Site "https://www.chess.com"]